fUSD/lending_fUSD_20240628
["ID","MTS","AMOUNT","RATE_DAILY","PERIOD"]
[330578695,1719581552459,-815.27749243,0.00022246,3]
[330578696,1719581552468,-500.0,0.00022246,3]
[330578697,1719581552479,-500.0,0.00022246,3]
[330578698,1719581552488,-500.0,0.00022246,3]
[330578699,1719581552497,-1837.07,0.00022246,3]
[330578700,1719581552506,-500.0,0.00022246,3]
[330578701,1719581552516,-500.0,0.00022246,3]
[330578702,1719581552525,-1046.48,0.00022246,3]
[330578703,1719581552535,-500.0,0.00022246,3]
[330578704,1719581552544,-500.0,0.00022246,3]
[330578705,1719581552553,-500.0,0.00022246,3]
[330578706,1719581552562,-500.0,0.00022246,3]
[330578707,1719581552571,-500.0,0.00022246,3]
[330578708,1719581552581,-500.0,0.00022246,3]
[330578709,1719581552590,-500.0,0.00022246,3]
[330578710,1719581552601,-1790.37,0.00022246,3]
[330578711,1719581552610,-500.0,0.00022246,3]
[330578712,1719581552619,-2000.64,0.00022246,3]
[330578713,1719581552628,-1186.46,0.00022246,3]
[330578714,1719581552638,-500.0,0.00022246,3]
[330578715,1719581552647,-500.0,0.00022246,3]
[330578716,1719581552657,-719.3,0.00022246,3]
[330578717,1719581552667,-3251.06,0.00022246,3]
[330578718,1719581552676,-214.66057566,0.00022246,3]
[330578719,1719581552689,-774.17942434,0.00022246,3]
[330578720,1719581552698,-322.1221564,0.00022246,3]
[330578721,1719581552744,-500.0,0.00022027,3]
[330578722,1719581552754,-500.0,0.00022082,3]
[330578723,1719581552763,-316.7678436,0.00022246,3]
[330578724,1719581552772,-500.0,0.00022246,3]
[330578725,1719581552782,-709.49,0.00022246,3]
[330578726,1719581552791,-500.0,0.00022246,3]
[330578727,1719581552801,-5851.89,0.00022246,3]
[330578728,1719581552811,-6549.41,0.00022246,3]
[330578729,1719581552820,-1243.35,0.00022246,3]
[330578730,1719581552830,-3127.02,0.00022246,3]
[330578731,1719581552840,-2930.95,0.00022246,3]
[330578732,1719581552850,-1121.54,0.00022246,3]
[330578733,1719581552860,-500.0,0.00022246,3]
[330578734,1719581552869,-500.0,0.00022246,3]
[330578735,1719581552878,-851.08,0.00022246,3]
[330578736,1719581552887,-776.56,0.00022246,3]
[330578737,1719581552896,-1849.31,0.00022246,3]
[330578738,1719581552906,-2636.86,0.00022246,3]
[330578739,1719581552915,-500.0,0.00022246,3]
[330578740,1719581552924,-231.41423175,0.00022246,3]
[330578741,1719581552937,-268.58576825,0.00022246,3]
[330578742,1719581552946,-121.70373175,0.00022246,3]
[330578743,1719581552957,-1340.89626825,0.00022246,3]
[330578744,1719581552966,-500.0,0.00022246,3]
[330578745,1719581552975,-283.65934864,0.00022246,3]
[330578746,1719581552987,-438.87065136,0.00022246,3]
[330578747,1719581552996,-316.5994816,0.00022246,3]
[330578749,1719581650279,-496.10852137,0.00011197,2]
[330578750,1719581651059,-251.10986832,0.00011197,2]
[330578751,1719581653245,-152.78161031,0.00011197,2]
[330578763,1719581965016,500.0,0.000225,30]
[330578764,1719582067751,-336.0,0.00031174,30]
[330578765,1719582067778,-133800.0,0.00031174,120]
[330578766,1719582067803,-309.999999,0.00031174,30]
[330578767,1719582067828,-1000.0,0.00031174,30]
[330578768,1719582082741,-668.21120511,0.00025,30]
[330578769,1719582082768,-921.36094793,0.00025,30]
[330578770,1719582082800,-292.73037552,0.0002739,30]
[330578771,1719582082824,-150.0,0.00027397,30]
[330578772,1719582082850,-200.0,0.00027397,60]
[330578773,1719582082878,-150.0,0.00027534,30]
[330578774,1719582082902,-150.0,0.00027671,30]
[330578775,1719582082926,-150.0,0.00027808,30]
[330578776,1719582082951,-150.0,0.00027945,30]
[330578777,1719582082976,-251.20587535,0.00028,30]
[330578778,1719582083004,-2000.0,0.00028,30]
[330578779,1719582083029,-150.0,0.00028082,30]
[330578780,1719582083053,-150.0,0.00028219,30]
[330578781,1719582083078,-150.0,0.00028356,30]
[330578782,1719582083102,-150.0,0.00028493,30]
[330578783,1719582083126,-150.0,0.0002863,30]
[330578784,1719582083490,-150.0,0.00028767,30]
[330578785,1719582083520,-1208.0,0.00028899,30]
[330578786,1719582083545,-150.0,0.00028904,30]
[330578787,1719582083575,-1000.0,0.00029,30]
[330578788,1719582083599,-150.0,0.00029041,30]
[330578789,1719582083629,-150.0,0.00029178,30]
[330578790,1719582083654,-150.0,0.00029315,30]
[330578791,1719582083680,-150.0,0.00029452,30]
[330578792,1719582083708,-150.0,0.00029589,30]
[330578793,1719582083734,-150.0,0.00029726,30]
[330578794,1719582083761,-231.27000512,0.00029863,30]
[330578795,1719582083789,-250.0,0.0003,30]
[330578796,1719582083814,-1136.51539364,0.0003,30]
[330578797,1719582083838,-3531.0,0.0003,30]
[330578798,1719582083862,-3000.0,0.0003,30]
[330578799,1719582083886,-3000.0,0.0003,30]
[330578800,1719582083909,-3000.0,0.0003,30]
[330578801,1719582083933,-3000.0,0.0003,30]
[330578802,1719582083958,-200.0,0.00030137,60]
[330578803,1719582083982,-158.0,0.0003015,120]
[330578804,1719582084022,-150.0,0.00030536,120]
[330578805,1719582084050,-250.0,0.000308,30]
[330578806,1719582084075,-154.004085,0.000309,120]
[330578807,1719582084116,-528.98,0.00031178,30]
[330578808,1719582084143,-1000.0,0.0003121,30]
[330578809,1719582084167,-1146.0,0.0003121,30]
[330578810,1719582084192,-110904.23,0.00031219,30]
[330578811,1719582084215,-10000.0,0.00031223,30]
[330578812,1719582084239,-10000.0,0.00031223,30]
[330578813,1719582084264,-10000.0,0.00031223,30]
[330578814,1719582084287,-10000.0,0.00031223,30]
[330578815,1719582084311,-10000.0,0.00031223,30]
[330578816,1719582084336,-10000.0,0.00031231,30]
[330578817,1719582084362,-10000.0,0.00031231,30]
[330578818,1719582084385,-10000.0,0.00031231,30]
[330578819,1719582084410,-500.0,0.00031234,30]
[330578820,1719582084438,-150.0,0.00032457,120]
[330578821,1719582084464,-626.46716284,0.00032876,30]
[330578822,1719582084489,-1413.84,0.00032876,120]
[330578823,1719582084514,-1413.84,0.00032876,120]
[330578824,1719582084539,-1413.84,0.00032876,120]
[330578825,1719582084564,-1413.84,0.00032876,120]
[330578826,1719582084589,-1413.84,0.00032876,120]
[330578827,1719582084619,-1413.84,0.00032876,120]
[330578828,1719582084644,-1413.84,0.00032876,120]
[330578829,1719582084671,-1413.84,0.00032876,120]
[330578830,1719582084697,-1413.84,0.00032876,120]
[330578831,1719582084722,-1413.84,0.00032876,120]
[330578832,1719582084747,-1413.84,0.00032876,120]
[330578833,1719582084775,-1413.84,0.00032876,120]
[330578834,1719582084803,-1413.84,0.00032876,120]
[330578835,1719582084827,-1413.84,0.00032876,120]
[330578836,1719582084850,-1413.84,0.00032876,120]
[330578837,1719582084875,-1413.84,0.00032876,120]
[330578838,1719582084900,-1413.84,0.00032876,120]
[330578839,1719582084927,-1413.84,0.00032876,120]
[330578840,1719582084952,-1413.84,0.00032876,120]
[330578841,1719582084977,-1413.84,0.00032876,120]
[330578842,1719582085003,-1413.84,0.00032876,120]
[330578843,1719582085030,-1413.84,0.00032876,120]
[330578844,1719582085053,-1413.84,0.00032876,120]
[330578845,1719582085078,-1413.87358541,0.00032876,120]
[330578846,1719582085103,-200.0,0.00032877,60]
[330578847,1719582085126,-4000.0,0.00032877,30]
[330578848,1719582085153,-150.0,0.00033038,120]
[330578849,1719582085179,-1145.08,0.00033151,120]
[330578850,1719582085207,-154.02,0.000335,31]
[330578851,1719582085232,-154.02,0.000335,31]
[330578852,1719582085258,-154.02,0.000335,31]
[330578853,1719582085284,-154.02,0.000335,31]
[330578854,1719582085309,-380.48830171,0.00033811,40]
[330578855,1719582085334,-477.59452261,0.00033811,40]
[330578856,1719582085361,-1145.76402567,0.00033811,40]
[330578857,1719582085386,-729.87119338,0.00033811,40]
[330578858,1719582085411,-341.13529938,0.00034,120]
[330578859,1719582085438,-1068.53761638,0.00035,30]
[330578860,1719582085462,-186.15074548,0.00035,30]
[330578861,1719582085486,-1292.70530456,0.00035,30]
[330578862,1719582085514,-347.73746497,0.00035,120]
[330578863,1719582085540,-200.0,0.00035616,60]
[330578864,1719582085571,-150.0,0.00035952,120]
[330578865,1719582085597,-154.02,0.000362,31]
[330578866,1719582085626,-154.02,0.000362,31]
[330578867,1719582085652,-154.02,0.000362,31]
[330578868,1719582085679,-154.02,0.000362,31]
[330578869,1719582085709,-150.0,0.00036445,120]
[330578870,1719582085739,-150.0,0.00037552,120]
[330578871,1719582085766,-150.0,0.00037654,120]
[330578872,1719582085792,-372.76388311,0.00038,30]
[330578873,1719582085817,-203.94260263,0.00038,30]
[330578874,1719582085842,-182.44308668,0.00038,120]
[330578875,1719582085866,-398.0,0.00038,120]
[330578876,1719582085891,-150.0,0.00038044,120]
[330578877,1719582085915,-1217.5,0.00038356,120]
[330578878,1719582085939,-1217.5,0.00038356,120]
[330578879,1719582085963,-1217.5,0.00038356,120]
[330578880,1719582085986,-1217.5,0.00038356,120]
[330578881,1719582086012,-1217.5,0.00038356,120]
[330578882,1719582086035,-1217.5,0.00038356,120]
[330578883,1719582086058,-1217.5,0.00038356,120]
[330578884,1719582086309,-1217.5,0.00038356,120]
[330578885,1719582086333,-1217.5,0.00038356,120]
[330578886,1719582086358,-1217.5,0.00038356,120]
[330578887,1719582086383,-1217.5,0.00038356,120]
[330578888,1719582086406,-1217.5,0.00038356,120]
[330578889,1719582086429,-1217.5,0.00038356,120]
[330578890,1719582086452,-1217.5,0.00038356,120]
[330578891,1719582086477,-1217.5,0.00038356,120]
[330578892,1719582086502,-1217.5,0.00038356,120]
[330578893,1719582086526,-1217.5,0.00038356,120]
[330578894,1719582086549,-1217.5,0.00038356,120]
[330578895,1719582086573,-1217.5,0.00038356,120]
[330578896,1719582086596,-1217.5,0.00038356,120]
[330578897,1719582086624,-1217.5,0.00038356,120]
[330578898,1719582086649,-1217.5,0.00038356,120]
[330578899,1719582086672,-1217.5,0.00038356,120]
[330578900,1719582086700,-1217.61766341,0.00038356,120]
[330578901,1719582086726,-273.1577579,0.00038356,60]
[330578902,1719582086750,-433.50633328,0.00038356,30]
[330578903,1719582086774,-997.07319149,0.000384,33]
[330578904,1719582086799,-433.50633328,0.00038521,30]
[330578905,1719582086822,-433.50633328,0.00038685,30]
[330578906,1719582086846,-611.09021546,0.000387,30]
[330578907,1719582086874,-433.50633328,0.00038849,30]
[330578908,1719582086898,-699.52391469,0.000389,30]
[330578909,1719582086923,-168.83266221,0.00039,30]
[330578910,1719582086947,-154.83577814,0.00039,120]
[330578911,1719582086972,-154.02,0.00039,31]
[330578912,1719582086996,-154.02,0.00039,31]
[330578913,1719582087022,-154.02,0.00039,31]
[330578914,1719582087047,-154.02,0.00039,31]
[330578915,1719582087071,-500.0,0.00039,100]
[330578916,1719582087094,-433.50633328,0.00039014,30]
[330578917,1719582087119,-150.0,0.00039174,120]
[330578918,1719582087142,-433.50633328,0.00039178,30]
[330578919,1719582087166,-433.50633328,0.00039315,30]
[330578920,1719582087190,-433.50633328,0.00039479,30]
[330578921,1719582087216,-328.83461691,0.000395,30]
[330578922,1719582087240,-594.6,0.000395,100]
[330578923,1719582087267,-433.50633328,0.00039644,30]
[330578924,1719582087291,-2495.51,0.00039726,90]
[330578925,1719582087317,-150.0,0.000398,120]
[330578926,1719582087342,-433.50633328,0.00039808,30]
[330578927,1719582087370,-150.0,0.00039848,120]
[330578928,1719582087395,-433.50633328,0.00039973,30]
[330578929,1719582087419,-250.0,0.00039999,30]
[330578930,1719582087447,-50000.0,0.0004,30]
[330578931,1719582087472,-151.0,0.0004,120]
[330578932,1719582087498,-151.0,0.0004,120]
[330578933,1719582087522,-477.12749073,0.0004,30]
[330578934,1719582087546,-309.62629908,0.0004,120]
[330578935,1719582087570,-408.77428129,0.0004,30]
[330578936,1719582087593,-262.66988501,0.0004,30]
[330578937,1719582087623,-726.92034219,0.0004,30]
[330578938,1719582087649,-612.59448764,0.0004,30]
[330578939,1719582087675,-230.25703416,0.0004,30]
[330578940,1719582087700,-241.43866249,0.0004,30]
[330578941,1719582087724,-300.0,0.0004,120]
[330578942,1719582087748,-500000.0,0.0004,90]
[330578943,1719582087775,-10387.41690251,0.0004,120]
[330578944,1719582087802,-298.16,0.0004,120]
[330578945,1719582087828,-1000.0,0.0004,120]
[330578946,1719582087851,-1464.11520179,0.00040039,30]
[330578947,1719582087874,-567.95615284,0.00040042,30]
[330578948,1719582087898,-1276.35942145,0.00040058,30]
[330578949,1719582087922,-159.51968976,0.00040062,30]
[330578950,1719582087946,-157.3835357,0.00040091,30]
[330578951,1719582087970,-154.79204592,0.00040101,30]
[330578952,1719582087994,-1276.35942145,0.00040109,30]
[330578953,1719582088022,-2166.46638259,0.00040128,30]
[330578954,1719582088046,-433.50633328,0.00040137,30]
[330578955,1719582088069,-151.00642554,0.00040181,30]
[330578956,1719582088094,-1464.11520179,0.00040205,30]
[330578957,1719582088118,-192.21126125,0.00040206,30]
[330578958,1719582088141,-151.14803081,0.0004021,30]
[330578959,1719582088165,-408.5105072,0.0004025,120]
[330578960,1719582088190,-2495.51,0.00040273,92]
[330578961,1719582088213,-170.91545049,0.00040273,30]
[330578962,1719582088238,-9445.6,0.000403,30]
[330578963,1719582088265,-192.21126125,0.00040301,30]
[330578964,1719582088290,-433.50633328,0.00040301,30]
[330578965,1719582088314,-1464.11520179,0.00040323,30]
[330578966,1719582088338,-228.57063521,0.00040336,30]
[330578967,1719582088363,-154.79204592,0.0004035,30]
[330578968,1719582088388,-1464.11520179,0.00040367,30]
[330578969,1719582088412,-343.56587168,0.00040381,30]
[330578970,1719582088436,-182.46682373,0.0004039,30]
[330578971,1719582088461,-155.75150186,0.00040433,30]
[330578972,1719582088486,-151.00642554,0.00040436,30]
[330578973,1719582088514,-192.21126125,0.0004045,30]
[330578974,1719582088538,-433.50633328,0.00040466,30]
[330578975,1719582088562,-1000.0,0.000405,120]
[330578976,1719582088587,-154.31578895,0.00040517,30]
[330578977,1719582088615,-343.56587168,0.00040518,30]
[330578978,1719582088641,-397.92671971,0.0004055,30]
[330578979,1719582088669,-152.24387089,0.00040558,30]
[330578980,1719582088695,-154.33905222,0.00040569,30]
[330578981,1719582088721,-433.50633328,0.0004063,30]
[330578982,1719582088745,-173.67,0.00040639,120]
[330578983,1719582088771,-151.0,0.00040658,120]
[330578984,1719582088796,-791.571095,0.000407,30]
[330578985,1719582088820,-166.66666666,0.00040704,30]
[330578986,1719582088844,-170.91545049,0.00040786,30]
[330578987,1719582088872,-550.41157085,0.00040796,30]
[330578988,1719582089133,-150.67590726,0.00040801,30]
[330578989,1719582089158,-2495.51,0.00040821,94]
[330578990,1719582089183,-2166.46638259,0.00040854,30]
[330578991,1719582089207,-182.46682373,0.0004087,30]
[330578992,1719582089231,-182.46682373,0.00040892,30]
[330578993,1719582089255,-154.33905222,0.00040927,30]
[330578994,1719582089278,-343.56587168,0.00040927,30]
[330578995,1719582089303,-343.56587168,0.00040938,30]
[330578996,1719582089326,-1464.11520179,0.00040946,30]
[330578997,1719582089352,-1276.35942145,0.0004096,30]
[330578998,1719582089378,-50000.0,0.00041,31]
[330578999,1719582089401,-500.0,0.00041,120]
[330579000,1719582089424,-1500.0,0.00041,120]
[330579001,1719582089446,-152.1392507,0.00041014,30]
[330579002,1719582089470,-397.92671971,0.00041033,30]
[330579003,1719582089494,-152.24387089,0.00041039,30]
[330579004,1719582089519,-975.2324384,0.00041059,30]
[330579005,1719582089544,-166.66666666,0.00041063,30]
[330579006,1719582089567,-550.41157085,0.00041066,30]
[330579007,1719582089592,-550.41157085,0.00041073,30]
[330579008,1719582089621,-2100.0,0.00041095,30]
[330579009,1719582089647,-500.0,0.00041095,30]
[330579010,1719582089672,-500.0,0.00041095,30]
[330579011,1719582089695,-500.0,0.00041095,30]
[330579012,1719582089718,-500.0,0.00041095,30]
[330579013,1719582089742,-500.0,0.00041095,30]
[330579014,1719582089767,-500.0,0.00041095,30]
[330579015,1719582089790,-500.0,0.00041095,30]
[330579016,1719582089817,-500.0,0.00041095,30]
[330579017,1719582089840,-500.0,0.00041095,30]
[330579018,1719582089863,-500.0,0.00041095,30]
[330579019,1719582089886,-500.0,0.00041095,30]
[330579020,1719582089910,-500.0,0.00041095,30]
[330579021,1719582089935,-500.0,0.00041095,30]
[330579022,1719582089962,-500.0,0.00041095,30]
[330579023,1719582089988,-500.0,0.00041095,30]
[330579024,1719582090013,-500.0,0.00041095,30]
[330579025,1719582090038,-500.0,0.00041095,30]
[330579026,1719582090063,-500.0,0.00041095,30]
[330579027,1719582090089,-500.0,0.00041095,30]
[330579028,1719582090112,-500.0,0.00041095,30]
[330579029,1719582090135,-267.26985781,0.00041095,30]
[330579030,1719582090157,-508.82442213,0.00041095,120]
[330579031,1719582090183,-1000.0,0.00041095,120]
[330579032,1719582090207,-900.0,0.00041095,30]
[330579033,1719582090230,-700.0,0.00041095,30]
[330579034,1719582090256,-1000.0,0.00041096,30]
[330579035,1719582090279,-166.66666667,0.00041145,30]
[330579036,1719582090302,-1000.0,0.00041147,30]
[330579037,1719582090326,-550.41157085,0.00041167,30]
[330579038,1719582090353,-165.54392445,0.00041177,30]
[330579039,1719582090379,-1464.11520179,0.00041192,30]
[330579040,1719582090403,-1000.0,0.00041197,30]
[330579041,1719582090428,-151.0,0.00041233,120]
[330579042,1719582090452,-1000.0,0.00041248,30]
[330579043,1719582090475,-151.14803081,0.00041252,30]
[330579044,1719582090499,-1000.0,0.00041299,30]
[330579045,1719582090524,-152.24387089,0.00041308,30]
[330579046,1719582090548,-975.2324384,0.00041308,30]
[330579047,1719582090572,-151.0,0.00041315,120]
[330579048,1719582090598,-1464.11520179,0.00041327,30]
[330579049,1719582090624,-197.47651852,0.00041342,30]
[330579050,1719582090652,-1000.0,0.0004135,30]
[330579051,1719582090675,-2495.51,0.00041369,96]
[330579052,1719582090707,-152.0,0.00041383,31]
[330579053,1719582090731,-1000.0,0.000414,30]
[330579054,1719582090757,-343.56587168,0.00041437,30]
[330579055,1719582090781,-1000.0,0.00041451,30]
[330579056,1719582090807,-1276.35942145,0.00041473,30]
[330579057,1719582090834,-1500.0,0.000415,120]
[330579058,1719582090861,-1000.0,0.00041502,30]
[330579059,1719582090887,-1000.0,0.00041553,30]
[330579060,1719582090911,-165.54392445,0.00041582,30]
[330579061,1719582090934,-1000.0,0.00041603,30]
[330579062,1719582090958,-157.3835357,0.00041606,30]
[330579063,1719582090983,-170.91545049,0.00041606,30]
[330579064,1719582091008,-343.56587168,0.00041635,30]
[330579065,1719582091032,-1464.11520179,0.00041637,30]
[330579066,1719582091058,-2100.0,0.00041643,30]
[330579067,1719582091082,-900.0,0.00041643,30]
[330579068,1719582091110,-600.0,0.00041643,30]
[330579069,1719582091134,-700.0,0.00041643,30]
[330579070,1719582091160,-4400.0,0.00041643,30]
[330579071,1719582091184,-1000.0,0.00041654,30]
[330579072,1719582091208,-155.75150186,0.00041687,30]
[330579073,1719582091233,-154.02,0.000417,31]
[330579074,1719582091258,-154.02,0.000417,31]
[330579075,1719582091283,-154.02,0.000417,31]
[330579076,1719582091308,-154.02,0.000417,31]
[330579077,1719582091332,-2166.46638259,0.000417,30]
[330579078,1719582091357,-1000.0,0.00041705,30]
[330579079,1719582091382,-161.11925394,0.00041739,30]
[330579080,1719582091406,-182.46682373,0.00041755,30]
[330579081,1719582091429,-1000.0,0.00041755,30]
[330579082,1719582091453,-550.41157085,0.00041783,30]
[330579083,1719582091476,-287.87248608,0.000418,120]
[330579084,1719582091500,-1000.0,0.00041806,30]
[330579085,1719582091527,-154.33905224,0.00041812,30]
[330579086,1719582091551,-464.33394173,0.00041815,30]
[330579087,1719582091574,-1000.0,0.00041857,30]
[330579088,1719582091600,-155.75150186,0.00041868,30]
[330579089,1719582091637,-152.0,0.00041879,31]
[330579090,1719582091662,-464.33394173,0.00041899,30]
[330579091,1719582091906,-1000.0,0.00041908,30]
[330579092,1719582091931,-2495.51,0.00041917,98]
[330579093,1719582091954,-181.27704374,0.00041945,30]
[330579094,1719582091978,-2166.46638259,0.00041952,30]
[330579095,1719582092002,-1000.0,0.00041958,30]
[330579096,1719582092027,-151.0,0.00041973,120]
[330579097,1719582092051,-464.33394173,0.00041979,30]
[330579098,1719582092075,-182.46682373,0.00041983,30]
[330579099,1719582092101,-50000.0,0.00042,32]
[330579100,1719582092125,-669.21,0.00042,120]
[330579101,1719582092150,-271.17067437,0.00042,60]
[330579102,1719582092174,-500.0,0.00042,120]
[330579103,1719582092199,-500000.0,0.00042,90]
[330579104,1719582092222,-2000.0,0.00042,120]
[330579105,1719582092245,-1000.0,0.00042009,30]
[330579106,1719582092270,-197.47651852,0.00042047,30]
[330579107,1719582092293,-1000.0,0.0004206,30]
[330579108,1719582092316,-166.66666666,0.000421,30]
[330579109,1719582092341,-1000.0,0.00042111,30]
[330579110,1719582092365,-550.41157085,0.0004215,30]
[330579111,1719582092388,-166.66666666,0.00042161,30]
[330579112,1719582092411,-1000.0,0.00042161,30]
[330579113,1719582092436,-151.00642554,0.00042171,30]
[330579114,1719582092459,-155.75150186,0.00042174,30]
[330579115,1719582092482,-975.2324384,0.00042184,30]
[330579116,1719582092505,-2100.0,0.00042191,30]
[330579117,1719582092530,-900.0,0.00042191,30]
[330579118,1719582092554,-700.0,0.00042191,30]
[330579119,1719582092578,-600.0,0.00042191,30]
[330579120,1719582092603,-4400.0,0.00042191,30]
[330579121,1719582092632,-1000.0,0.00042212,30]
[330579122,1719582092657,-182.46682373,0.0004222,30]
[330579123,1719582092683,-156.39906773,0.00042222,30]
[330579124,1719582092712,-151.00642554,0.0004223,30]
[330579125,1719582092736,-165.54392449,0.00042251,30]
[330579126,1719582092762,-192.21126125,0.00042251,30]
[330579127,1719582092789,-1000.0,0.00042263,30]
[330579128,1719582092814,-1039.0,0.00042281,30]
[330579129,1719582092839,-975.2324384,0.0004229,30]
[330579130,1719582092864,-179.23789179,0.00042302,30]
[330579131,1719582092892,-1000.0,0.00042314,30]
[330579132,1719582092917,-150.0,0.00042347,120]
[330579133,1719582092944,-159.53308865,0.00042363,30]
[330579134,1719582092971,-1000.0,0.00042364,30]
[330579135,1719582092996,-192.21126125,0.00042371,30]
[330579136,1719582093026,-343.56587168,0.00042375,30]
[330579137,1719582093050,-3778.2,0.000424,120]
[330579138,1719582093075,-1000.0,0.00042415,30]
[330579139,1719582093100,-166.66666668,0.00042421,30]
[330579140,1719582093125,-464.33394173,0.00042436,30]
[330579141,1719582093150,-152.24387089,0.00042444,30]
[330579142,1719582093174,-182.46682373,0.00042461,30]
[330579143,1719582093199,-2495.51,0.00042465,100]
[330579144,1719582093223,-151.0,0.00042466,120]
[330579145,1719582093248,-1000.0,0.00042466,30]
[330579146,1719582093274,-153.85422544,0.00042477,30]
[330579147,1719582093299,-197.47651852,0.00042496,30]
[330579148,1719582093324,-500000.0,0.000425,80]
[330579149,1719582093349,-1108.95,0.000425,120]
[330579150,1719582093375,-1000.0,0.00042516,30]
[330579151,1719582093400,-343.56587168,0.00042521,30]
[330579152,1719582093425,-397.92671971,0.00042527,30]
[330579153,1719582093449,-1000.0,0.00042567,30]
[330579154,1719582093474,-397.92671971,0.00042599,30]
[330579155,1719582093499,-567.95615284,0.00042604,30]
[330579156,1719582093527,-2166.46638259,0.00042606,30]
[330579157,1719582093553,-197.47651852,0.00042613,30]
[330579158,1719582093578,-1000.0,0.00042618,30]
[330579159,1719582093605,-151.0,0.0004263,120]
[330579160,1719582093634,-151.14803084,0.00042644,30]
[330579161,1719582093659,-1000.0,0.00042669,30]
[330579162,1719582093684,-567.95615284,0.00042685,30]
[330579163,1719582093712,-1000.0,0.00042719,30]
[330579164,1719582093736,-152.24387089,0.00042736,30]
[330579165,1719582093763,-567.95615284,0.00042738,30]
[330579166,1719582093790,-2100.0,0.00042739,30]
[330579167,1719582093820,-900.0,0.00042739,30]
[330579168,1719582093845,-700.0,0.00042739,30]
[330579169,1719582093872,-600.0,0.00042739,30]
[330579170,1719582093898,-4400.0,0.00042739,30]
[330579171,1719582093921,-166.66666668,0.00042741,30]
[330579172,1719582093946,-207.2920081,0.00042763,30]
[330579173,1719582093971,-567.95615293,0.00042767,30]
[330579174,1719582093995,-1000.0,0.0004277,30]
[330579175,1719582094022,-228.57063521,0.00042812,30]
[330579176,1719582094050,-1464.11520179,0.00042814,30]
[330579177,1719582094074,-207.2920081,0.00042815,30]
[330579178,1719582094098,-1000.0,0.00042821,30]
[330579179,1719582094122,-1464.11520179,0.00042824,30]
[330579180,1719582094146,-228.57063521,0.00042825,30]
[330579181,1719582094170,-228.57063521,0.0004284,30]
[330579182,1719582094194,-632.23,0.00042846,30]
[330579183,1719582094220,-632.23,0.00042846,30]
[330579184,1719582094243,-632.23,0.00042846,30]
[330579185,1719582094269,-632.23,0.00042846,30]
[330579186,1719582094292,-397.92671971,0.0004285,30]
[330579187,1719582094316,-1000.0,0.00042872,30]
[330579188,1719582094342,-10700.44513436,0.000429,120]
[330579189,1719582094368,-6187.05557677,0.000429,120]
[330579190,1719582094392,-6187.05557671,0.000429,120]
[330579191,1719582094417,-6187.05557671,0.000429,120]
[330579192,1719582094441,-6187.05557671,0.000429,120]
[330579193,1719582094465,-6187.05557671,0.000429,120]
[330579194,1719582094707,-6187.05557671,0.000429,120]
[330579195,1719582094732,-6187.05557671,0.000429,120]
[330579196,1719582094757,-6187.05557671,0.000429,120]
[330579197,1719582094784,-6187.05557671,0.000429,120]
[330579198,1719582094808,-6187.05557671,0.000429,120]
[330579199,1719582094833,-2663.71931613,0.000429,40]
[330579200,1719582094858,-1000.0,0.00042922,30]
[330579201,1719582094883,-464.33394173,0.00042928,30]
[330579202,1719582094908,-170.91545054,0.00042929,30]
[330579203,1719582094932,-1000.0,0.00042973,30]
[330579204,1719582094956,-154.31578898,0.00042975,30]
[330579205,1719582094980,-154.79204592,0.00042987,30]
[330579206,1719582095007,-50000.0,0.00043,33]